Workbook

Sheet Лист1
A1: Школа | C1: 23 | F1: Согласовано | G1: должность | H1: Директор
A2: Типовое примерное меню приготавливаемых блюд | G2: фамилия | H2: Н.В. Бирюкова
A3: Возрастная категория | E3: 7-11 лет | G3: дата | H3: 12 | I3: 1 | J3: 2026
H4: день | I4: месяц | J4: год
A5: Неделя | B5: День недели | C5: Прием пищи | D5: Раздел меню | E5: Блюда | F5: Вес блюда, г | G5: Белки | H5: Жиры | I5: Углеводы | J5: Калорийность | K5: № рецептуры | L5: Цена
A6: 1 | B6: 1 | C6: Завтрак | D6: гор. блюдо | E6: Каша вязкая молочная из пшена с маслом | F6: 200/10 | G6: 5.71 | H6: 8.95 | I6: 28.25 | J6: 217.14 | K6: 173.01
D7: гор. напиток | E7: Кофейный напиток с молоком | F7: 200 | G7: 3.17 | H7: 2.68 | I7: 15.95 | J7: 100.6 | K7: 379
D8: хлеб | E8: Батон витамин. | F8: 65 | K8: 428
E9: Сыр (порциями) | F9: 25 | G9: 1.25 | H9: 1.25 | J9: 16.45 | K9: 15
D11: итого | G11: =SUM(G6, G7, G9) -> 10.13 | H11: 12.88 | I11: 44.2 | J11: =SUM(J6, J7, J9) -> 334.19 | L11: =SUM(L6:L10) -> 0
A12: =A6 -> 1 | B12: =B6 -> 1 | C12: Обед | D12: 1 блюдо | E12: Суп-пюре из гороха | F12: 200 | G12: 5.95 | H12: 3.64 | I12: 13.28 | J12: 118.8 | K12: 21.01
E13: Гренки | F13: 20 | G13: 0.18 | H13: 0.02 | I13: 1.1 | J13: 5.18 | K13: 371
D14: 2 блюдо | E14: Гуляш свинина | F14: 60/60 | G14: 12.44 | H14: 32.89 | I14: 3.4 | J14: 360.44 | K14: 260
D15: гарнир | E15: Каша гречневая рассыпчатая | F15: 150 | G15: 23.94 | H15: 25.85 | I15: 107.78 | J15: 757.01 | K15: 171
D16: напиток | E16: Компот из смеси сухофруктов | F16: 200 | G16: 0.66 | H16: 0.09 | I16: 32.01 | J16: 132.8 | K16: 349
D17: хлеб | E17: Батон витамин. | F17: 40 | K17: 428
D20: итого | G20: =SUM(G12:G19) -> 43.17 | H20: =SUM(H12:H19) -> 62.49 | I20: =SUM(I12:I19) -> 157.57 | J20: =SUM(J12:J19) -> 1374.23 | L20: =SUM(L12:L19) -> 0
A21: =A6 -> 1 | B21: =B6 -> 1 | C21: Итого за день: | F21: =F11+F20 -> 0 | G21: =G11+G20 -> 53.3 | H21: =H11+H20 -> 75.37 | I21: =I11+I20 -> 201.77 | J21: =J11+J20 -> 1708.42 | L21: =L11+L20 -> 0
A22: 1 | B22: 2 | C22: Завтрак | D22: гор. блюдо | E22: Зразы рубленные из свинины | F22: 90 | G22: 11.22 | H22: 30.41 | I22: 11.46 | J22: 362.49 | K22: 274
D23: гарнир | E23: Макаронные изделия отварные с маслом сл. | F23: 150 | G23: 4.55 | H23: 4.82 | I23: 25.39 | J23: 163.09 | K23: 309
D24: хлеб | E24: Батон витамин. | F24: 40 | K24: 428
D25: гор. напиток | E25: Чай с лимоном | F25: 200/7 | G25: 0.13 | H25: 0.02 | I25: 14.69 | J25: 59.9 | K25: 377
E26: Икра кабачковая | F26: 60 | G26: 1.01 | H26: 2.59 | I26: 5.26 | J26: 48.17 | K26: 1
D29: итого | G29: =SUM(G22:G28) -> 16.91 | H29: =SUM(H22:H28) -> 37.84 | I29: 56.8 | J29: 633.65 | L29: =SUM(L22:L28) -> 0
A30: =A22 -> 1 | B30: =B22 -> 2 | C30: Обед | D30: 1 блюдо | E30: Борщ с капустой и картофелем на курином бульоне | F30: 200/10 | G30: 2.05 | H30: 5.82 | I30: 23.03 | J30: 152.39 | K30: 82.02
D31: 2 блюдо | E31: Зразы рубленные из свинины | F31: 100 | G31: 12.47 | H31: 33.79 | I31: 12.73 | J31: 402.77 | K31: 274
D32: гарнир | E32: Макаронные изделия отварные с маслом сливочным | F32: 150 | G32: 4.55 | H32: 4.82 | I32: 25.39 | J32: 163.09 | K32: 309
E33: Икра кабачковая | F33: 100 | G33: 1.68 | H33: 4.32 | I33: 8.77 | J33: 80.28 | K33: 1
D34: напиток | E34: Чай с сахаром | F34: 200 | G34: 0.07 | H34: 0.02 | I34: 15 | J34: 60 | K34: 376
D35: хлеб | E35: Батон витамин. | F35: 50 | K35: 428
D38: итого | G38: =SUM(G30:G37) -> 20.82 | H38: =SUM(H30:H37) -> 48.77 | I38: =SUM(I30:I37) -> 84.92 | J38: =SUM(J30:J37) -> 858.53 | L38: =SUM(L30:L37) -> 0
A39: =A22 -> 1 | B39: =B22 -> 2 | C39: Итого за день: | F39: 0 | G39: =G29+G38 -> 37.73 | H39: =H29+H38 -> 86.61 | I39: =I29+I38 -> 141.72 | J39: =J29+J38 -> 1492.18 | L39: =L29+L38 -> 0
A40: 1 | B40: 3 | C40: Завтрак | D40: гор. блюдо | E40: Каша вязкая молочная ячневая с маслом | F40: 200/10 | G40: 9.06 | H40: 13.62 | I40: 48.54 | J40: 354.11 | K40: 174.01
D41: гор. напиток | E41: Какао на молоке | F41: 200 | G41: 6.7 | H41: 3.4 | I41: 21 | J41: 143 | K41: 382.01
D42: фрукты | E42: Фрукт свежий | F42: 1 | G42: 0.8 | H42: 0.8 | I42: 19.6 | J42: 94 | K42: 338
D43: хлеб | E43: Батон витамин. | F43: 40 | K43: 428
D46: итого | G46: =SUM(G40:G45) -> 16.56 | H46: =SUM(H40:H45) -> 17.82 | I46: =SUM(I40:I45) -> 89.14 | J46: =SUM(J40:J45) -> 591.11 | L46: =SUM(L40:L45) -> 0
A47: =A40 -> 1 | B47: =B40 -> 3 | C47: Обед | D47: 1 блюдо | E47: Суп картофельный с макаронными изделиями на курином бульоне | F47: 200 | G47: 2.12 | H47: 2.23 | I47: 19.38 | J47: 137.6 | K47: 103
D48: 2 блюдо | E48: Бедро куриное запечёное | F48: 110 | G48: 18.17 | H48: 17.28 | I48: 15.61 | J48: 258.27 | K48: 6
D49: гарнир | E49: Рис с овощами | F49: 150 | G49: 3.8 | H49: 7.14 | I49: 39.6 | J49: 237.59 | K49: 205
D50: напиток | E50: Компот из ягод (заморозка) | F50: 200 | G50: 0.52 | H50: 0.18 | I50: 28.86 | J50: 122.6 | K50: 388
D51: хлеб | E51: Батон витамин. | F51: 50 | K51: 428
D54: итого | G54: =SUM(G47:G53) -> 24.61 | H54: =SUM(H47:H53) -> 26.83 | I54: =SUM(I47:I53) -> 103.45 | J54: =SUM(J47:J53) -> 756.06 | L54: =SUM(L47:L53) -> 0
A55: =A40 -> 1 | B55: =B40 -> 3 | C55: Итого за день: | F55: =F46+F54 -> 0 | G55: =G46+G54 -> 41.17 | H55: =H46+H54 -> 44.65 | I55: =I46+I54 -> 192.59 | J55: =J46+J54 -> 1347.17 | L55: =L46+L54 -> 0
A56: 1 | B56: 4 | C56: Завтрак | D56: гор. блюдо | E56: Тефтели 2-й вариант (свин) | F56: 60/30 | G56: 12.03 | H56: 27.84 | I56: 20.07 | J56: 385.47 | K56: 279
D57: гарнир | E57: Пюре картофельное | F57: 150 | G57: 3.1 | H57: 4.8 | I57: 20.5 | J57: 137.3 | K57: 312
D58: гор. напиток | E58: Напиток "Витошка Лайт" | F58: 200 | G58: 0.07 | I58: 16 | J58: 65 | K58: 352.04
D59: хлеб | E59: Батон витамин. | F59: 60 | K59: 428
D62: итого | G62: =SUM(G56:G61) -> 15.2 | H62: =SUM(H56:H61) -> 32.64 | I62: =SUM(I56:I61) -> 56.57 | J62: =SUM(J56:J61) -> 587.77 | L62: =SUM(L56:L61) -> 0
A63: =A56 -> 1 | B63: =B56 -> 4 | C63: Обед | D63: 1 блюдо | E63: Рассольник ленинградский на курином бульоне | F63: 200/10 | G63: 3.52 | H63: 3.24 | I63: 30.11 | J63: 137.6 | K63: 137.6
D64: 2 блюдо | E64: Суфле из отварной рыбы | F64: 120 | G64: 5.89 | H64: 14.76 | I64: 19.15 | J64: 332.5 | K64: 332.5
D65: гарнир | E65: Пюре картофельное | F65: 150 | G65: 3.1 | H65: 4.8 | I65: 20.5 | J65: 137.3 | K65: 137.3
D66: напиток | E66: Напиток "Витошка Лайт" | F66: 200 | I66: 16 | J66: 65 | K66: 65
D67: хлеб | E67: Батон витамин. | F67: 60
D71: итого | G71: =SUM(G63:G70) -> 12.51 | H71: =SUM(H63:H70) -> 22.8 | I71: =SUM(I63:I70) -> 85.76 | J71: =SUM(J63:J70) -> 672.4 | L71: =SUM(L63:L70) -> 0
A72: =A56 -> 1 | B72: =B56 -> 4 | C72: Итого за день: | F72: 0 | G72: =G62+G71 -> 27.71 | H72: =H62+H71 -> 55.44 | I72: =I62+I71 -> 142.33 | J72: =J62+J71 -> 1260.17 | L72: =L62+L71 -> 0
A73: 1 | B73: 5 | C73: Завтрак | D73: гор. блюдо | E73: Запеканка из творога с морковью | F73: 170 | G73: 23.12 | H73: 20.06 | I73: 21.59 | J73: 358.7 | K73: 13.05
E74: Молоко сгущенное | F74: 30 | G74: 2.16 | H74: 9 | I74: 16.8 | J74: 147 | K74: 2
D75: гор. напиток | E75: Чай с сахаром | F75: 200 | G75: 0.07 | H75: 0.02 | I75: 15 | J75: 60 | K75: 376
D76: хлеб | E76: Батон витамин. | F76: 100 | K76: 428
D79: итого | G79: =SUM(G73:G77) -> 25.35 | H79: =SUM(H73:H77) -> 29.08 | I79: =SUM(I73:I77) -> 53.39 | J79: =SUM(J73:J77) -> 565.7 | L79: =SUM(L73:L77) -> 0
A80: =A73 -> 1 | B80: =B73 -> 5 | C80: Обед | D80: 1 блюдо | E80: Щи из свежей капусты с картофелем на курином бульоне | F80: 200/10 | G80: 6.14 | H80: 3.97 | I80: 17.38 | J80: 111.46 | K80: 88.02
D81: 2 блюдо | E81: Паста болоньезе с куриным филе | F81: 200 | G81: 26.28 | H81: 11.47 | I81: 51.61 | J81: 416.41 | K81: 54.15
E82: Икра кабачковая | F82: 60 | G82: 1.01 | H82: 2.59 | I82: 5.26 | J82: 48.17 | K82: 1
D83: напиток | E83: Напиток из плодов шиповника | F83: 200 | G83: 0.68 | H83: 0.28 | I83: 20.76 | J83: 88.2 | K83: 388
D84: хлеб | E84: Батон витамин. | F84: 50 | K84: 428
D87: итого | G87: =SUM(G80:G86) -> 34.11 | H87: =SUM(H80:H86) -> 18.31 | I87: =SUM(I80:I86) -> 95.01 | J87: =SUM(J80:J86) -> 664.24 | L87: =SUM(L80:L86) -> 0
A88: =A73 -> 1 | B88: =B73 -> 5 | C88: Итого за день: | F88: 0 | G88: =G79+G87 -> 59.46 | H88: =H79+H87 -> 47.39 | I88: =I79+I87 -> 148.4 | J88: =J79+J87 -> 1229.94 | L88: =L79+L87 -> 0
A89: 2 | B89: 1 | C89: Завтрак | D89: гор.блюдо | E89: Каша вязкая молочная пшеничная с маслом | F89: 200/10 | G89: 5.71 | H89: 8.95 | I89: 28.25 | J89: 217.14 | K89: 173.01
E90: Сыр (порциями) | F90: 25 | G90: 1.25 | H90: 1.25 | J90: 13.15 | K90: 15
D91: гор. напиток | E91: Кофейные напиток с молоком | F91: 200 | G91: 3.17 | H91: 2.68 | I91: 15.95 | J91: 100.6 | K91: 379
D92: хлеб | E92: Батон витамин. | F92: 70 | K92: 428
D95: итого | G95: =SUM(G89:G94) -> 10.13 | H95: =SUM(H89:H94) -> 12.88 | I95: =SUM(I89:I94) -> 44.2 | J95: =SUM(J89:J94) -> 330.89 | L95: =SUM(L89:L94) -> 0
A96: =A89 -> 2 | B96: =B89 -> 1 | C96: Обед | D96: 1 блюдо | E96: Суп-пюре из гороха | F96: 200 | G96: 5.95 | H96: 3.64 | I96: 13.28 | J96: 118.8 | K96: 21.01
E97: Гренки | F97: 20 | G97: 0.18 | H97: 0.02 | I97: 1.1 | J97: 5.18 | K97: 371
D98: 2 блюдо | E98: Гуляш свинина | F98: 50/50 | G98: 10.37 | H98: 27.41 | I98: 2.83 | J98: 300.37 | K98: 260
D99: гарнир | E99: Каша гречневая рассыпчатая | F99: 150 | G99: 23.94 | H99: 25.85 | I99: 107.78 | J99: 757.01 | K99: 171
D100: напиток | E100: Компот из ягод (заморозка) | F100: 200 | G100: 0.52 | H100: 0.18 | I100: 28.86 | J100: 122.6 | K100: 388
D101: хлеб | E101: Батон витамин. | F101: 50
D104: итого | G104: =SUM(G96:G103) -> 40.96 | H104: =SUM(H96:H103) -> 57.1 | I104: =SUM(I96:I103) -> 153.85 | J104: =SUM(J96:J103) -> 1303.96 | L104: =SUM(L96:L103) -> 0
A105: =A89 -> 2 | B105: =B89 -> 1 | C105: Итого за день: | F105: 0 | G105: =G95+G104 -> 51.09 | H105: =H95+H104 -> 69.98 | I105: =I95+I104 -> 198.05 | J105: =J95+J104 -> 1634.85 | L105: =L95+L104 -> 0
A106: 2 | B106: 2 | C106: Завтрак | D106: гор. блюдо | E106: Зразы рубленые из свинины | F106: 90 | G106: 11.22 | H106: 30.41 | I106: 11.46 | J106: 362.49 | K106: 274
D107: гарнир | E107: Макаронные изделия отварные с маслом сл. | F107: 1900-05-29 | G107: 4.55 | H107: 4.82 | I107: 25.39 | J107: 163.09 | K107: 309
D108: гор. напиток | E108: Чай с сахаром | F108: 200 | G108: 0.07 | H108: 0.02 | I108: 15 | J108: 60 | K108: 376
D109: хлеб | E109: Батон витамин. | F109: 50 | K109: 428
D110: фрукты | E110: Фрукт свежий | F110: 1 | G110: 0.8 | H110: 0.8 | I110: 19.6 | J110: 94
D112: итого | G112: 16.64 | H112: =SUM(H106:H110) -> 36.05 | I112: =SUM(I106:I110) -> 71.45 | J112: =SUM(J106:J110) -> 679.58 | L112: =SUM(L106:L110) -> 0
A113: =A106 -> 2 | B113: =B106 -> 2 | C113: Обед | D113: 1 блюдо | E113: Борщ с капустой и картофелем на курином бульоне | F113: 200/10 | G113: 2.05 | H113: 5.82 | I113: 23.03 | J113: 152.39 | K113: 82.02
D114: 2 блюдо | E114: Зразы рубленые из свинины | F114: 90 | G114: 11.22 | H114: 30.41 | I114: 11.46 | J114: 362.49 | K114: 274
D115: гарнир | E115: Макаронные изделия отварные с маслом сливочным | F115: 150 | G115: 4.55 | H115: 4.82 | I115: 25.39 | J115: 163.09 | K115: 309
D116: напиток | E116: Чай с сахаром | F116: 200 | G116: 0.07 | H116: 0.02 | I116: 15 | J116: 60 | K116: 376
D117: хлеб | E117: Батон витамин. | F117: 70 | K117: 428
D118: фрукты | E118: Фрукт свежий | F118: 1 | G118: 0.8 | H118: 0.8 | I118: 19.6 | J118: 94
D121: итого | G121: =SUM(G113:G119) -> 18.69 | H121: =SUM(H113:H119) -> 41.87 | I121: =SUM(I113:I119) -> 94.48 | J121: =SUM(J113:J119) -> 831.97 | L121: =SUM(L113:L119) -> 0
A122: =A106 -> 2 | B122: =B106 -> 2 | C122: Итого за день: | F122: =F112+F121 -> 0 | G122: =G112+G121 -> 35.33 | H122: =H112+H121 -> 77.92 | I122: =I112+I121 -> 165.93 | J122: =J112+J121 -> 1511.55 | L122: =L112+L121 -> 0
A123: 2 | B123: 3 | C123: Завтрак | D123: гор. блюдо | E123: Омлет натуральный | F123: 150 | G123: 9.48 | H123: 16.92 | I123: 1.85 | J123: 197.11 | K123: 210
E124: Кукуруза консервированная | F124: 50 | G124: 7.25 | H124: 1.5 | I124: 24.75 | J124: 144.5 | K124: 3
D125: гор. напиток | E125: Чай с молоком | F125: 200 | G125: 1.52 | H125: 1.36 | I125: 15.9 | J125: 81 | K125: 378
D126: хлеб | E126: Батон витамин. | F126: 100 | K126: 428
D129: итого | G129: =SUM(G123:G128) -> 18.25 | H129: =SUM(H123:H128) -> 19.78 | I129: =SUM(I123:I128) -> 42.5 | J129: =SUM(J123:J128) -> 422.61 | L129: =SUM(L123:L128) -> 0
A130: =A123 -> 2 | B130: =B123 -> 3 | C130: Обед | D130: 1 блюдо | E130: Щи из свежей капусты с картофелем на курином бульоне | F130: 250/10 | G130: 7.6 | H130: 4.92 | I130: 21.52 | J130: 138 | K130: 88.02
D131: 2 блюдо | E131: Плов с куриным филе | F131: 240 | G131: 23.31 | H131: 27.09 | I131: 74.61 | J131: 600.93 | K131: 291
D132: напиток | E132: Напиток"Витошка Лайт" | F132: 200 | G132: 0 | H132: 0 | I132: 16 | J132: 65 | K132: 352
D133: хлеб | E133: Батон витамин. | F133: 60 | K133: 428
D136: итого | G136: =SUM(G130:G135) -> 30.91 | H136: =SUM(H130:H135) -> 32.01 | I136: =SUM(I130:I135) -> 112.13 | J136: =SUM(J130:J135) -> 803.93 | L136: =SUM(L130:L135) -> 0
A137: =A123 -> 2 | B137: =B123 -> 3 | C137: Итого за день: | F137: 0 | G137: =G129+G136 -> 49.16 | H137: =H129+H136 -> 51.79 | I137: =I129+I136 -> 154.63 | J137: =J129+J136 -> 1226.54 | L137: =L129+L136 -> 0
A138: 2 | B138: 4 | C138: Завтрак | D138: гор. блюдо | E138: Шницель (свинина) | F138: 90 | G138: 10.56 | H138: 27.34 | I138: 10.83 | J138: 333.84 | K138: 268.03
D139: гарнир | E139: Рис с овощами | F139: 150 | G139: 3.8 | H139: 7.14 | I139: 39.6 | J139: 237.59 | K139: 205
D140: напиток | E140: Компот из смеси сухофруктов | F140: 200 | G140: 0.66 | H140: 0.09 | I140: 32.01 | J140: 132.8 | K140: 349
D141: хлеб | E141: Батон витамин. | F141: 40 | K141: 428
D144: итого | G144: =SUM(G138:G143) -> 15.02 | H144: =SUM(H138:H143) -> 34.57 | I144: =SUM(I138:I143) -> 82.44 | J144: =SUM(J138:J143) -> 704.23 | L144: =SUM(L138:L143) -> 0
A145: =A138 -> 2 | B145: =B138 -> 4 | C145: Обед | D145: 1 блюдо | E145: Рассольник ленинградский на курином бульоне | F145: 200/10 | G145: 3.52 | H145: 3.24 | I145: 30.11 | J145: 137.6 | K145: 96.02
D146: 2 блюдо | E146: Тефтели 2 вариант (свин.) | F146: 60/30 | G146: 12.03 | H146: 27.84 | I146: 20.07 | J146: 385.47 | K146: 279
D147: гарнир | E147: Пюре картофельное | F147: 150 | G147: 3.1 | H147: 4.8 | I147: 20.5 | J147: 137.3 | K147: 312
D148: напиток | E148: Чай с лимоном | F148: 200/7 | G148: 0.13 | H148: 0.02 | I148: 14.69 | J148: 59.9 | K148: 349
D149: хлеб | E149: Батон витамин. | F149: 50 | K149: 428
D150: овощи | E150: Огурец свежий порционный | F150: 60 | G150: 0.08 | H150: 0.02 | I150: 0.2 | J150: 1.3 | K150: 71
D153: итого | G153: =SUM(G145:G152) -> 18.86 | H153: =SUM(H145:H152) -> 35.92 | I153: =SUM(I145:I152) -> 85.57 | J153: =SUM(J145:J152) -> 721.57 | L153: =SUM(L145:L152) -> 0
A154: =A138 -> 2 | B154: =B138 -> 4 | C154: Итого за день: | F154: 0 | G154: =G144+G153 -> 33.88 | H154: =H144+H153 -> 70.49 | I154: =I144+I153 -> 168.01 | J154: =J144+J153 -> 1425.8 | L154: =L144+L153 -> 0
A155: 2 | B155: 5 | C155: Завтрак | D155: гор. блюдо | E155: Запеканка творожная с яблоком | F155: 170 | G155: 69.32 | H155: 88 | I155: 74.69 | J155: 677.65 | K155: 223.14
E156: Молоко сгущенное | F156: 30 | G156: 2.16 | H156: 9 | I156: 16.8 | J156: 147 | K156: 2
D157: гор. напиток | E157: Чай с сахаром | F157: 200 | G157: 0.07 | H157: 0.02 | I157: 15 | J157: 60 | K157: 376
D158: хлеб | E158: Батон витамин. | F158: 100 | K158: 428
D161: итого | G161: =SUM(G155:G159) -> 71.55 | H161: =SUM(H155:H159) -> 97.02 | I161: =SUM(I155:I159) -> 106.49 | J161: =SUM(J155:J159) -> 884.65 | L161: =SUM(L155:L159) -> 0
A162: =A155 -> 2 | B162: =B155 -> 5 | C162: Обед | D162: 1 блюдо | E162: Суп картофельный с макаронными изделиями на курином бульоне | F162: 200 | G162: 2.12 | H162: 2.23 | I162: 19.39 | J162: 137.6 | K162: 103.03
D163: 2 блюдо | E163: Каша "Царская" с филе куриным | F163: 240 | G163: 22.76 | H163: 16.97 | I163: 93.96 | J163: 725.55 | K163: 44.03
D164: напиток | E164: Компот из клубники | F164: 200 | G164: 0.2 | H164: 1 | I164: 7.4 | J164: 39 | K164: 54.09
D165: хлеб | E165: Батон витамин. | F165: 60 | K165: 428
D168: итого | G168: =SUM(G162:G167) -> 25.08 | H168: =SUM(H162:H167) -> 20.2 | I168: =SUM(I162:I167) -> 120.75 | J168: =SUM(J162:J167) -> 902.15 | L168: =SUM(L162:L167) -> 0
A169: =A155 -> 2 | B169: =B155 -> 5 | C169: Итого за день: | F169: 0 | G169: =G161+G168 -> 96.63 | H169: =H161+H168 -> 117.22 | I169: =I161+I168 -> 227.24 | J169: =J161+J168 -> 1786.8 | L169: =L161+L168 -> 0
C170: Среднее значение за период: | F170: 0 | G170: =(G21+G39+G55+G72+G88+G105+G122+G137+G154+G169)/(IF(G21=0, 0, 1)+IF(G39=0, 0, 1)+IF(G55=0, 0, 1)+IF(G72=0, 0, 1)+IF(G88=0, 0, 1)+IF(G105=0, 0, 1)+IF(G122=0, 0, 1)+IF(G137=0, 0, 1)+IF(G154=0, 0, 1)+IF(G169=0, 0, 1)) -> 48.546 | H170: =(H21+H39+H55+H72+H88+H105+H122+H137+H154+H169)/(IF(H21=0, 0, 1)+IF(H39=0, 0, 1)+IF(H55=0, 0, 1)+IF(H72=0, 0, 1)+IF(H88=0, 0, 1)+IF(H105=0, 0, 1)+IF(H122=0, 0, 1)+IF(H137=0, 0, 1)+IF(H154=0, 0, 1)+IF(H169=0, 0, 1)) -> 69.686 | I170: =(I21+I39+I55+I72+I88+I105+I122+I137+I154+I169)/(IF(I21=0, 0, 1)+IF(I39=0, 0, 1)+IF(I55=0, 0, 1)+IF(I72=0, 0, 1)+IF(I88=0, 0, 1)+IF(I105=0, 0, 1)+IF(I122=0, 0, 1)+IF(I137=0, 0, 1)+IF(I154=0, 0, 1)+IF(I169=0, 0, 1)) -> 174.067 | J170: =(J21+J39+J55+J72+J88+J105+J122+J137+J154+J169)/(IF(J21=0, 0, 1)+IF(J39=0, 0, 1)+IF(J55=0, 0, 1)+IF(J72=0, 0, 1)+IF(J88=0, 0, 1)+IF(J105=0, 0, 1)+IF(J122=0, 0, 1)+IF(J137=0, 0, 1)+IF(J154=0, 0, 1)+IF(J169=0, 0, 1)) -> 1462.342 | L170: 0
